Workbook

Sheet основа
A1: вводимый параметр 1 | B1: вводимый параметр 2 | C1: вводимый параметр 3 | D1: вводимый параметр 4 | E1: Результат 1 | F1: Результат 2 | G1: Результат 3 | H1: Результат 4 | I1: Результат 5 | J1: Результат 6 | K1: Результат 7 | L1: Результат 8 | M1: Результат 9 | N1: Результат 10 | O1: То что можно менять (Диапазон изменения от 1 до 150 с шагом через 1)
A2: 5 | B2: -3 | C2: 24 | D2: 40 | E2: =D2/10000 -> 0.004 | F2: 25000 | G2: =F2/H2 -> 342.4657534 | H2: 73 | I2: =J2*H2 -> -3869 | J2: =MIN(AA11:AA8303) -> -53 | K2: =L2*H2 -> 34490 | L2: =V8503 -> 472.4657534 | M2: =IF(OR(L2<0,L2<2*ABS(J2)),TEXT("ПЛОХО",),) -> 0 | N2: =ROUND(ABS(L2/J2),2) -> 8.91 | O2: копируемая строчка на лист "результаты"
O3: ABCD - вводимые переменные подбираемые параметры и результаты, EFGHIJKLMN - результаты
A5: 2 | B5: -3 | C5: 24 | D5: 1 | E5: 0.0001 | F5: 25000 | G5: 342.4657534 | H5: 73 | I5: -3285 | J5: -45 | K5: 25949 | L5: 355.4657534 | M5: 0 | N5: 7.9 | O5: копированные результаты, которые хотелось бы видеть на листе (РЕЗУЛЬТАТЫ)
A6: 2 | B6: -3 | C6: 24 | D6: 10 | E6: 0.001 | F6: 25000 | G6: 342.4657534 | H6: 73 | I6: -2409 | J6: -33 | K6: 26898 | L6: 368.4657534 | M6: 0 | N6: 11.17
A7: 2 | B7: -3 | C7: 24 | D7: 20 | E7: 0.002 | F7: 25000 | G7: 342.4657534 | H7: 73 | I7: -1241 | J7: -17 | K7: 29453 | L7: 403.4657534 | M7: 0 | N7: 23.73
A8: 2 | B8: -3 | C8: 24 | D8: 40 | E8: 0.004 | F8: 25000 | G8: 342.4657534 | H8: 73 | I8: -1241 | J8: -17 | K8: 29453 | L8: 403.4657534 | M8: 0 | N8: 23.73
P9: Формула 10 | Q9: Формула 11 | R9: Формула 12 | S9: Формула 13 | T9: Формула 14 | U9: Формула 15 | V9: Формула 16 | W9: Формула 17 | X9: Формула 18 | Y9: Формула 19 | Z9: Формула 20 | AA9: Формула 21 | AB9: Формула 22 | AC9: Формула 23 | AD9: Формула 24 | AE9: Формула 25 | AF9: Формула 26 | AG9: 0 | AH9: -1 | AI9: -2 | AJ9: -3 | AK9: -4 | AL9: -5 | AM9: -6 | AN9: -7 | AO9: -8 | AP9: -9 | AQ9: -10 | AR9: -11 | AS9: -12 | AT9: -13 | AU9: -14 | AV9: -15 | AW9: -16
A10: Исходные данные неизменные 1 | B10: Исходные данные неизменные 2 | C10: Исходные данные неизменные 3 | D10: Исходные данные неизменные 4 | E10: Исходные данные неизменные 5 | F10: Исходные данные неизменные 6 | G10: Формула 1 | H10: Формула 2 | I10: Формула 3 | J10: Формула 4 | K10: Формула 5 | L10: Формула 6 | M10: Формула 7 | N10: Формула 8 | O10: Формула 9 | V10: =G2 -> 342.4657534 | AG10: =SUM(AG11:AG8213) -> 11 | AH10: =SUM(AH11:AH8213) -> 1 | AI10: 1 | AJ10: 0 | AK10: 0 | AL10: 0 | AM10: 0 | AN10: 0 | AO10: 0 | AP10: 0 | AQ10: 0 | AR10: 0 | AS10: 0 | AT10: 0 | AU10: 0 | AV10: 0 | AW10: 0
A11: 20160201 | B11: 110000 | C11: 1.0854 | D11: 1.0868 | E11: 1.0854 | F11: 1.0858 | G11: =D11-E11 -> 0.0014 | H11: =IF(F11>C11,C11-E11,D11-C11) -> 0 | I11: =ABS(F11-C11) -> 0.0004 | J11: =G11-H11 -> 0.0014 | K11: =IF(F11>C11,(C11-E11)/E11*100,(D11-C11)/C11*100) -> 0 | L11: =ABS((F11-C11)/C11*100) -> 0.03685277317 | M11: =(G11-H11)/C11*100 -> 0.1289847061 | N11: =IF(C11<F11,(TEXT("верх",)),(TEXT("вниз",))) -> верх | O11: =N11 -> верх | P11: 1 | Q11: =IF(O11=O10,1,IF(J11<$E$2,1,-1)) -> 1 | R11: =P11*Q11 -> 1 | S11: =I11*R11*10000 -> 4 | T11: =IF(U10<0,T10*$A$2,1) -> 1 | U11: =IF(AE10<=0,S11*T11,0) -> 4 | V11: =U11+V10 -> 346.4657534 | W11: =IF(U11>0,0,U11) -> 0 | X11: =IF(U11<0,-T12,0) -> 0 | Y11: =IF(W11=0,0,W11+Y10) -> 0 | Z11: =X11+Y11 -> 0 | AA11: =IF(Z11=0,0,IF(AND(Z12=0,Z10<0),Z11,IF(AND(Z10=0,Z12=0),Z11,0))) -> 0 | AB11: =IF(Z11=0,0,AB10-1) -> 0 | AC11: =IF(AB11=0,0,IF(AND(AB12=0,AB10<0),AB11,IF(AND(AB10=0,AB12=0),AB11,0))) -> 0 | AD11: =IF(AB11<=$B$2,0,1) -> 1 | AE11: =IF(AD11=0,$C$2,AE10-1) -> -1 | AF11: =IF(AE11<=0,1,0) -> 1 | AG11: =IF(AC11=$AG$9,1,0) -> 1 | AH11: =IF(AC11=$AH$9,1,0) -> 0 | AI11: =IF(AC11=$AI$9,1,0) -> 0 | AJ11: =IF(AC11=$AJ$9,1,0) -> 0 | AK11: =IF(AC11=$AK$9,1,0) -> 0 | AL11: =IF(AC11=$AL$9,1,0) -> 0 | AM11: =IF(AC11=$AM$9,1,0) -> 0 | AN11: =IF(AC11=$AN$9,1,0) -> 0 | AO11: =IF(AC11=$AO$9,1,0) -> 0 | AP11: =IF(AC11=$AP$9,1,0) -> 0 | AQ11: =IF(AC11=$AQ$9,1,0) -> 0 | AR11: =IF(AC11=$AR$9,1,0) -> 0 | AS11: =IF(AC11=$AS$9,1,0) -> 0 | AT11: =IF(AC11=$AT$9,1,0) -> 0 | AU11: =IF(AC11=$AU$9,1,0) -> 0 | AV11: =IF(AC11=$AV$9,1,0) -> 0 | AW11: =IF(AC11=$AW$9,1,0) -> 0
A12: 20160201 | B12: 120000 | C12: 1.0857 | D12: 1.0872 | E12: 1.0857 | F12: 1.0861 | G12: 0.0015 | H12: 0 | I12: 0.0004 | J12: =G12-H12 -> 0.0015 | K12: =IF(F12>C12,(C12-E12)/E12*100,(D12-C12)/C12*100) -> 0 | L12: =ABS((F12-C12)/C12*100) -> 0.03684259003 | M12: =(G12-H12)/C12*100 -> 0.1381597126 | N12: верх | O12: =IF(J12<$E$2,O11,N12) -> верх | P12: =IF(N12=O12,1,-1) -> 1 | Q12: 1 | R12: 1 | S12: =I12*R12*10000 -> 4 | T12: 1 | U12: =IF(AE11<=0,S12*T12,0) -> 4 | V12: =U12+V11 -> 350.4657534 | W12: =IF(U12>0,0,U12) -> 0 | X12: =IF(U12<0,-T13,0) -> 0 | Y12: =IF(W12=0,0,W12+Y11) -> 0 | Z12: =X12+Y12 -> 0 | AA12: =IF(Z12=0,0,IF(AND(Z13=0,Z11<0),Z12,IF(AND(Z11=0,Z13=0),Z12,0))) -> 0 | AB12: =IF(Z12=0,0,AB11-1) -> 0 | AC12: =IF(AB12=0,0,IF(AND(AB13=0,AB11<0),AB12,IF(AND(AB11=0,AB13=0),AB12,0))) -> 0 | AD12: 1 | AE12: -2 | AF12: =IF(AE12<=0,1,0) -> 1 | AG12: 1 | AH12: 0 | AI12: 0 | AJ12: 0 | AK12: 0 | AL12: 0 | AM12: 0 | AN12: 0 | AO12: 0 | AP12: 0 | AQ12: 0 | AR12: 0 | AS12: 0 | AT12: 0 | AU12: 0 | AV12: 0 | AW12: 0
A13: 20160201 | B13: 130000 | C13: 1.0862 | D13: 1.0871 | E13: 1.0852 | F13: 1.0869 | G13: 0.0019 | H13: 0.001 | I13: 0.0007 | J13: 0.0009 | K13: 0.09214891264 | L13: 0.06444485362 | M13: 0.08285766894 | N13: верх | O13: верх | P13: 1 | Q13: 1 | R13: 1 | S13: =I13*R13*10000 -> 7 | T13: 1 | U13: 7 | V13: =U13+V12 -> 357.4657534 | W13: =IF(U13>0,0,U13) -> 0 | X13: =IF(U13<0,-T14,0) -> 0 | Y13: =IF(W13=0,0,W13+Y12) -> 0 | Z13: =X13+Y13 -> 0 | AA13: =IF(Z13=0,0,IF(AND(Z14=0,Z12<0),Z13,IF(AND(Z12=0,Z14=0),Z13,0))) -> 0 | AB13: =IF(Z13=0,0,AB12-1) -> 0 | AC13: =IF(AB13=0,0,IF(AND(AB14=0,AB12<0),AB13,IF(AND(AB12=0,AB14=0),AB13,0))) -> 0 | AD13: 1 | AE13: -3 | AF13: 1 | AG13: 1 | AH13: 0 | AI13: 0 | AJ13: 0 | AK13: 0 | AL13: 0 | AM13: 0 | AN13: 0 | AO13: 0 | AP13: 0 | AQ13: 0 | AR13: 0 | AS13: 0 | AT13: 0 | AU13: 0 | AV13: 0 | AW13: 0
A14: 20160201 | B14: 140000 | C14: 1.0869 | D14: 1.0879 | E14: 1.0864 | F14: 1.0873 | G14: 0.0015 | H14: 0.0005 | I14: 0.0004 | J14: 0.001 | K14: 0.04602356406 | L14: 0.0368019137 | M14: 0.09200478425 | N14: верх | O14: верх | P14: 1 | Q14: 1 | R14: 1 | S14: =I14*R14*10000 -> 4 | T14: 1 | U14: 4 | V14: =U14+V13 -> 361.4657534 | W14: =IF(U14>0,0,U14) -> 0 | X14: =IF(U14<0,-T15,0) -> 0 | Y14: =IF(W14=0,0,W14+Y13) -> 0 | Z14: =X14+Y14 -> 0 | AA14: =IF(Z14=0,0,IF(AND(Z15=0,Z13<0),Z14,IF(AND(Z13=0,Z15=0),Z14,0))) -> 0 | AB14: =IF(Z14=0,0,AB13-1) -> 0 | AC14: =IF(AB14=0,0,IF(AND(AB15=0,AB13<0),AB14,IF(AND(AB13=0,AB15=0),AB14,0))) -> 0 | AD14: 1 | AE14: -4 | AF14: 1 | AG14: 1 | AH14: 0 | AI14: 0 | AJ14: 0 | AK14: 0 | AL14: 0 | AM14: 0 | AN14: 0 | AO14: 0 | AP14: 0 | AQ14: 0 | AR14: 0 | AS14: 0 | AT14: 0 | AU14: 0 | AV14: 0 | AW14: 0
A15: 20160201 | B15: 150000 | C15: 1.0873 | D15: 1.088 | E15: 1.0871 | F15: 1.0879 | G15: 0.0009 | H15: 0.0002 | I15: 0.0006 | J15: 0.0007 | K15: 0.01839757152 | L15: 0.05518256231 | M15: 0.06437965603 | N15: верх | O15: верх | P15: 1 | Q15: 1 | R15: 1 | S15: 6 | T15: 1 | U15: 6 | V15: 367.4657534 | W15: 0 | X15: =IF(U15<0,-T16,0) -> 0 | Y15: =IF(W15=0,0,W15+Y14) -> 0 | Z15: =X15+Y15 -> 0 | AA15: =IF(Z15=0,0,IF(AND(Z16=0,Z14<0),Z15,IF(AND(Z14=0,Z16=0),Z15,0))) -> 0 | AB15: =IF(Z15=0,0,AB14-1) -> 0 | AC15: =IF(AB15=0,0,IF(AND(AB16=0,AB14<0),AB15,IF(AND(AB14=0,AB16=0),AB15,0))) -> 0 | AD15: 1 | AE15: -5 | AF15: 1 | AG15: 1 | AH15: 0 | AI15: 0 | AJ15: 0 | AK15: 0 | AL15: 0 | AM15: 0 | AN15: 0 | AO15: 0 | AP15: 0 | AQ15: 0 | AR15: 0 | AS15: 0 | AT15: 0 | AU15: 0 | AV15: 0 | AW15: 0
A16: 20160201 | B16: 160000 | C16: 1.088 | D16: 1.0892 | E16: 1.0876 | F16: 1.0891 | G16: 0.0016 | H16: 0.0004 | I16: 0.0011 | J16: 0.0012 | K16: 0.03677822729 | L16: 0.1011029412 | M16: 0.1102941176 | N16: верх | O16: верх | P16: 1 | Q16: 1 | R16: 1 | S16: 11 | T16: 1 | U16: 11 | V16: 378.4657534 | W16: 0 | X16: =IF(U16<0,-T17,0) -> 0 | Y16: =IF(W16=0,0,W16+Y15) -> 0 | Z16: =X16+Y16 -> 0 | AA16: =IF(Z16=0,0,IF(AND(Z17=0,Z15<0),Z16,IF(AND(Z15=0,Z17=0),Z16,0))) -> 0 | AB16: =IF(Z16=0,0,AB15-1) -> 0 | AC16: =IF(AB16=0,0,IF(AND(AB17=0,AB15<0),AB16,IF(AND(AB15=0,AB17=0),AB16,0))) -> 0 | AD16: 1 | AE16: -6 | AF16: 1 | AG16: 1 | AH16: 0 | AI16: 0 | AJ16: 0 | AK16: 0 | AL16: 0 | AM16: 0 | AN16: 0 | AO16: 0 | AP16: 0 | AQ16: 0 | AR16: 0 | AS16: 0 | AT16: 0 | AU16: 0 | AV16: 0 | AW16: 0
A17: 20160201 | B17: 170000 | C17: 1.0891 | D17: 1.0899 | E17: 1.0885 | F17: 1.0894 | G17: 0.0014 | H17: 0.0006 | I17: 0.0003 | J17: 0.0008 | K17: 0.05512172715 | L17: 0.02754567992 | M17: 0.07345514645 | N17: верх | O17: верх | P17: 1 | Q17: 1 | R17: =P17*Q17 -> 1 | S17: 3 | T17: 1 | U17: 3 | V17: 381.4657534 | W17: 0 | X17: 0 | Y17: 0 | Z17: 0 | AA17: 0 | AB17: 0 | AC17: 0 | AD17: 1 | AE17: -7 | AF17: 1 | AG17: 1 | AH17: 0 | AI17: 0 | AJ17: 0 | AK17: 0 | AL17: 0 | AM17: 0 | AN17: 0 | AO17: 0 | AP17: 0 | AQ17: 0 | AR17: 0 | AS17: 0 | AT17: 0 | AU17: 0 | AV17: 0 | AW17: 0
A18: 20160201 | B18: 180000 | C18: 1.0895 | D18: 1.0917 | E18: 1.0889 | F18: 1.0911 | G18: 0.0028 | H18: 0.0006 | I18: 0.0016 | J18: 0.0022 | K18: 0.05510147856 | L18: 0.1468563561 | M18: 0.2019274897 | N18: верх | O18: верх | P18: 1 | Q18: 1 | R18: =P18*Q18 -> 1 | S18: 16 | T18: 1 | U18: 16 | V18: 397.4657534 | W18: 0 | X18: 0 | Y18: 0 | Z18: 0 | AA18: 0 | AB18: 0 | AC18: 0 | AD18: 1 | AE18: -8 | AF18: 1 | AG18: 1 | AH18: 0 | AI18: 0 | AJ18: 0 | AK18: 0 | AL18: 0 | AM18: 0 | AN18: 0 | AO18: 0 | AP18: 0 | AQ18: 0 | AR18: 0 | AS18: 0 | AT18: 0 | AU18: 0 | AV18: 0 | AW18: 0
A19: 20160201 | B19: 190000 | C19: 1.0911 | D19: 1.0924 | E19: 1.0905 | F19: 1.0908 | G19: 0.0019 | H19: 0.0013 | I19: 0.0003 | J19: 0.0006 | K19: 0.1191458161 | L19: 0.02749518834 | M19: 0.05499037668 | N19: вниз | O19: верх | P19: -1 | Q19: 1 | R19: -1 | S19: -3 | T19: 1 | U19: -3 | V19: 394.4657534 | W19: -3 | X19: -5 | Y19: -3 | Z19: -8 | AA19: 0 | AB19: -1 | AC19: 0 | AD19: 1 | AE19: -9 | AF19: 1 | AG19: 1 | AH19: 0 | AI19: 0 | AJ19: 0 | AK19: 0 | AL19: 0 | AM19: 0 | AN19: 0 | AO19: 0 | AP19: 0 | AQ19: 0 | AR19: 0 | AS19: 0 | AT19: 0 | AU19: 0 | AV19: 0 | AW19: 0
A20: 20160201 | B20: 200000 | C20: 1.0902 | D20: 1.0905 | E20: 1.0887 | F20: 1.0897 | G20: 0.0018 | H20: 0.0003 | I20: 0.0005 | J20: 0.0015 | K20: 0.02751788663 | L20: 0.04586314438 | M20: 0.1375894331 | N20: вниз | O20: верх | P20: -1 | Q20: 1 | R20: -1 | S20: -5 | T20: 5 | U20: -25 | V20: 369.4657534 | W20: -25 | X20: -25 | Y20: -28 | Z20: -53 | AA20: -53 | AB20: -2 | AC20: -2 | AD20: 1 | AE20: -10 | AF20: 1 | AG20: 0 | AH20: 0 | AI20: 1 | AJ20: 0 | AK20: 0 | AL20: 0 | AM20: 0 | AN20: 0 | AO20: 0 | AP20: 0 | AQ20: 0 | AR20: 0 | AS20: 0 | AT20: 0 | AU20: 0 | AV20: 0 | AW20: 0
A21: 20160201 | B21: 210000 | C21: 1.0899 | D21: 1.0914 | E21: 1.0897 | F21: 1.0902 | G21: 0.0017 | H21: 0.0002 | I21: 0.0003 | J21: 0.0015 | K21: 0.01835367532 | L21: 0.02752546105 | M21: 0.1376273053 | N21: верх | O21: верх | P21: 1 | Q21: 1 | R21: 1 | S21: 3 | T21: 25 | U21: 75 | V21: 444.4657534 | W21: 0 | X21: 0 | Y21: 0 | Z21: 0 | AA21: 0 | AB21: 0 | AC21: 0 | AD21: 1 | AE21: -11 | AF21: 1 | AG21: 1 | AH21: 0 | AI21: 0 | AJ21: 0 | AK21: 0 | AL21: 0 | AM21: 0 | AN21: 0 | AO21: 0 | AP21: 0 | AQ21: 0 | AR21: 0 | AS21: 0 | AT21: 0 | AU21: 0 | AV21: 0 | AW21: 0
A22: 20160201 | B22: 220000 | C22: 1.0904 | D22: 1.0905 | E22: 1.0895 | F22: 1.0897 | G22: 0.001 | H22: 0.0001 | I22: 0.0007 | J22: 0.0009 | K22: 0.009170946442 | L22: 0.06419662509 | M22: 0.08253851798 | N22: вниз | O22: верх | P22: -1 | Q22: 1 | R22: -1 | S22: -7 | T22: 1 | U22: -7 | V22: 437.4657534 | W22: -7 | X22: -5 | Y22: -7 | Z22: -12 | AA22: -12 | AB22: -1 | AC22: -1 | AD22: 1 | AE22: -12 | AF22: 1 | AG22: 0 | AH22: 1 | AI22: 0 | AJ22: 0 | AK22: 0 | AL22: 0 | AM22: 0 | AN22: 0 | AO22: 0 | AP22: 0 | AQ22: 0 | AR22: 0 | AS22: 0 | AT22: 0 | AU22: 0 | AV22: 0 | AW22: 0
A23: 20160201 | B23: 230000 | C23: 1.0898 | D23: 1.0919 | E23: 1.0898 | F23: 1.0905 | G23: 0.0021 | H23: 0 | I23: 0.0007 | J23: 0.0021 | K23: 0 | L23: 0.06423196917 | M23: 0.1926959075 | N23: верх | O23: верх | P23: 1 | Q23: 1 | R23: 1 | S23: 7 | T23: 5 | U23: 35 | V23: 472.4657534 | W23: 0 | X23: 0 | Y23: 0 | Z23: 0 | AA23: 0 | AB23: 0 | AC23: 0 | AD23: 1 | AE23: -13 | AF23: 1 | AG23: 1 | AH23: 0 | AI23: 0 | AJ23: 0 | AK23: 0 | AL23: 0 | AM23: 0 | AN23: 0 | AO23: 0 | AP23: 0 | AQ23: 0 | AR23: 0 | AS23: 0 | AT23: 0 | AU23: 0 | AV23: 0 | AW23: 0
V8503: =V23 -> 472.4657534

Sheet результаты
A1: вводимый параметр 1 | B1: вводимый параметр 2 | C1: вводимый параметр 3 | D1: вводимый параметр 4 | E1: Результат 1 | F1: Результат 2 | G1: Результат 3 | H1: Результат 4 | I1: Результат 5 | J1: Результат 6 | K1: Результат 7 | L1: Результат 8 | M1: Результат 9 | N1: Результат 10
A2: 2 | B2: -3 | C2: 24 | D2: 1 | E2: 0.0001 | F2: 25000 | G2: 342.4657534 | H2: 73 | I2: -3285 | J2: -45 | K2: 25949 | L2: 355.4657534 | M2: 0 | N2: 7.9
A3: 2 | B3: -3 | C3: 24 | D3: 10 | E3: 0.001 | F3: 25000 | G3: 342.4657534 | H3: 73 | I3: -2409 | J3: -33 | K3: 26898 | L3: 368.4657534 | M3: 0 | N3: 11.17
A4: 2 | B4: -3 | C4: 24 | D4: 20 | E4: 0.002 | F4: 25000 | G4: 342.4657534 | H4: 73 | I4: -1241 | J4: -17 | K4: 29453 | L4: 403.4657534 | M4: 0 | N4: 23.73
A5: 2 | B5: -3 | C5: 24 | D5: 40 | E5: 0.004 | F5: 25000 | G5: 342.4657534 | H5: 73 | I5: -1241 | J5: -17 | K5: 29453 | L5: 403.4657534 | M5: 0 | N5: 23.73
A6: 2 | B6: -3 | C6: 24 | D6: 40 | E6: 0.004 | F6: 25000 | G6: 342.4657534 | H6: 73 | I6: -1241 | J6: -17 | K6: 29453 | L6: 403.4657534 | M6: 0 | N6: 23.73
A7: 2 | B7: -3 | C7: 24 | D7: 40 | E7: 0.004 | F7: 25000 | G7: 342.4657534 | H7: 73 | I7: -1241 | J7: -17 | K7: 29453 | L7: 403.4657534 | M7: 0 | N7: 23.73
A8: 2 | B8: -3 | C8: 24 | D8: 40 | E8: 0.004 | F8: 25000 | G8: 342.4657534 | H8: 73 | I8: -1241 | J8: -17 | K8: 29453 | L8: 403.4657534 | M8: 0 | N8: 23.73
A9: 5 | B9: -3 | C9: 24 | D9: 40 | E9: 0.004 | F9: 25000 | G9: 342.4657534 | H9: 73 | I9: -3869 | J9: -53 | K9: 34490 | L9: 472.4657534 | M9: 0 | N9: 8.91
